bitfinex/quotes_ETHUSD_20240811
["timestamp","ask_amount","ask_price","bid_price","bid_amount"]
[1723363320685,2.60633,2685.8,2685.2,5.0203]
[1723363321198,2.60633,2685.8,2685.4,0.1]
[1723363321363,5.21231,2686.0,2685.4,0.1]
[1723363321569,0.260615,2685.9,2685.4,0.1]
[1723363321767,0.260615,2685.9,2685.2,5.0203]
[1723363321964,2.60639,2685.8,2685.2,5.0203]
[1723363322310,5.21277,2685.8,2685.2,5.0203]
[1723363322460,0.5473385,2685.7,2685.2,5.0203]
[1723363322861,2.60638,2685.8,2685.2,5.0203]
[1723363323104,2.6064,2685.7,2685.2,5.0203]
[1723363323512,2.60638,2685.8,2685.2,5.0203]
[1723363323996,2.60611,2686.0,2685.2,5.0203]
[1723363324361,5.2123,2686.0,2685.2,5.0203]
[1723363324614,3.12734,2686.0,2685.2,5.0203]
[1723363324904,5.21275,2685.8,2685.2,5.0203]
[1723363325202,2.60637,2685.8,2685.2,5.0203]
[1723363325706,2.60645,2685.7,2685.2,5.0203]
[1723363326485,2.60628,2685.9,2685.2,5.0203]
[1723363326719,2.60642,2685.7,2685.2,5.0203]
[1723363326920,2.60632,2685.8,2685.2,5.0203]
[1723363329311,5.21269,2685.8,2685.2,5.0203]
[1723363329515,2.60642,2685.7,2685.2,5.0203]
[1723363330612,2.60652,2685.6,2685.2,5.0203]
[1723363331388,4.9965,2685.4,2683.9,3.54461718]
[1723363331596,2.60753,2684.6,2684.1,0.1]
[1723363331818,2.60728,2684.8,2684.1,0.1]
[1723363331819,1.55009335,2684.5,2684.1,0.1]
[1723363332017,2.60711,2685.0,2684.3,0.2]
[1723363332434,3.89647737,2684.9,2684.3,0.2]
[1723363332638,3.89647737,2684.9,2684.5,0.1]
[1723363332639,1.28925737,2684.8,2684.5,0.1]
[1723363332788,0.38964774,2684.7,2684.3,0.2]
[1723363334197,2.60727,2684.8,2684.3,0.2]
[1723363334529,2.60727,2684.8,2684.4,4.8344]
[1723363335244,2.60711,2685.0,2684.5,0.2]
[1723363336300,2.60717,2684.9,2684.5,0.2]
[1723363336500,2.60735,2684.8,2684.5,0.1]
[1723363338461,2.60737,2684.7,2684.5,0.1]
[1723363338664,2.60735,2684.8,2684.5,0.1]
[1723363339676,2.6071,2685.0,2684.7,0.1]
[1723363339969,2.60692,2685.2,2684.7,0.2]
[1723363340186,2.60714,2685.0,2684.6,4.8344]
[1723363340369,2.60714,2685.0,2684.5,0.1]
[1723363340576,2.60701,2685.1,2684.5,0.1]
[1723363340724,2.60701,2685.1,2684.7,0.2]
[1723363340924,2.60692,2685.2,2684.8,4.8344]
[1723363341175,2.60707,2685.1,2684.6,4.8344]
[1723363341370,2.60707,2685.0,2684.6,4.8344]
[1723363341525,2.60718,2684.9,2684.6,4.8344]
[1723363341860,2.60707,2685.0,2684.6,0.1]
[1723363342428,5.21423,2685.0,2684.4,4.9344]
[1723363342725,3.6541872,2685.0,2684.4,4.9344]
[1723363343353,2.60727,2684.8,2684.4,4.9344]
[1723363344642,5.21462,2684.8,2684.4,4.9344]
[1723363344848,2.60727,2684.8,2684.4,4.9344]
[1723363345069,2.60736,2684.7,2684.4,4.8344]
[1723363345285,1.0471172,2685.0,2684.6,0.1]
[1723363345574,4.8403,2685.8,2685.0,0.1]
[1723363345785,2.6068,2685.3,2685.0,0.1]
[1723363348354,2.60689,2685.2,2685.0,0.1]
[1723363348549,0.521369,2685.1,2685.0,0.1]
[1723363350281,3.128339,2685.1,2685.0,0.1]
[1723363350482,2.60697,2685.1,2685.0,0.1]
[1723363350778,2.60716,2685.0,2684.7,5.0927]
[1723363351079,2.60716,2685.0,2684.7,5.1927]
[1723363351285,2.60718,2684.9,2684.7,5.0927]
[1723363351502,2.60718,2684.9,2684.7,5.1927]
[1723363351640,2.60718,2684.9,2684.7,5.0927]
[1723363352137,2.60718,2684.9,2684.5,5.2927]
[1723363352341,3.1546647,2684.9,2684.5,5.2927]
[1723363352738,2.867787,2685.0,2684.7,0.1]
[1723363353256,2.60514,2687.0,2685.3,0.2]
[1723363353257,2.60633,2685.8,2685.3,0.2]
[1723363353568,2.6065,2685.6,2685.3,0.2]
[1723363353778,2.6065,2685.6,2685.3,0.1]
[1723363353964,0.26065,2685.5,2685.3,0.1]
[1723363355677,2.86724,2685.5,2685.2,5.0927]
[1723363356376,2.86724,2685.5,2685.3,0.1]
[1723363356979,0.26065,2685.5,2685.3,0.2]
[1723363357680,0.26065,2685.5,2685.3,0.1]
[1723363358178,0.26065,2685.5,2685.3,0.2]
[1723363359564,2.60634,2685.8,2685.3,0.2]
[1723363359746,1.28889267,2685.7,2685.3,0.2]
[1723363360065,2.60634,2685.8,2685.3,0.2]
[1723363360293,1.28888939,2685.7,2685.3,0.2]
[1723363360470,2.60634,2685.8,2685.3,0.2]
[1723363360656,1.54952357,2685.7,2685.3,0.2]
[1723363360858,2.867084,2685.7,2685.3,0.2]
[1723363361170,0.260634,2685.7,2685.3,0.2]
[1723363361481,0.21853272,2686.5,2685.7,5.2269]
[1723363361482,2.60595,2686.2,2685.7,5.2269]
[1723363361688,1.28872754,2686.1,2685.7,5.2269]
[1723363361844,2.60595,2686.2,2685.7,5.2269]
[1723363361845,1.67819529,2686.0,2685.7,5.2269]
[1723363362171,0.38946775,2686.0,2685.7,5.2269]
[1723363363477,2.99557775,2686.0,2685.7,5.1269]
[1723363363679,0.38946775,2686.0,2685.7,5.2269]
[1723363363850,0.38946775,2686.0,2685.7,5.1269]
[1723363364262,0.38946775,2686.0,2685.7,5.2269]
[1723363365150,2.60595,2686.2,2685.7,5.1269]
[1723363365347,2.60558,2686.6,2686.2,0.1]
[1723363365563,1.2885945,2686.5,2686.2,4.9599]
[1723363365763,0.38941745,2686.4,2686.2,5.0599]
[1723363366277,0.38941745,2686.4,2686.2,4.9599]
[1723363366484,0.38941745,2686.4,2686.2,5.0599]
[1723363367882,2.60581,2686.3,2686.0,0.1]
[1723363368078,0.38941745,2686.4,2686.0,0.1]
[1723363368272,0.38941745,2686.4,2686.3,0.1]
[1723363369956,2.60533,2686.8,2686.5,0.1]
[1723363370345,3.0,2686.9,2686.7,0.1]
[1723363370597,1.064014,2686.9,2686.7,0.1]
[1723363371962,3.669244,2686.9,2686.7,0.1]
[1723363372169,1.064014,2686.9,2686.8,0.1]
[1723363372371,3.0,2687.2,2686.8,0.1]
[1723363372684,8.21001,2687.2,2686.8,0.1]
[1723363372858,2.60506,2687.1,2686.8,0.1]
[1723363373055,5.60499,2687.2,2686.8,0.1]
[1723363373262,7.63961,2687.6,2687.2,0.1]
[1723363373472,3.46586323,2687.6,2687.2,0.1]
[1723363373676,2.60466,2687.5,2687.2,0.1]
[1723363374085,2.60461,2687.6,2687.4,0.1]
[1723363374252,0.38948225,2688.6,2688.4,0.1]
[1723363374457,0.38948225,2688.6,2688.5,4.8599]
[1723363374653,2.60185,2690.4,2688.6,0.1]
[1723363374892,2.61589359,2689.3,2688.6,0.2]
[1723363375343,0.01298359,2689.3,2688.6,0.1]
[1723363375470,2.60326,2689.0,2688.7,0.1]
[1723363375669,2.60311,2689.1,2688.7,0.1]
[1723363375975,0.01298359,2689.3,2688.7,0.1]
[1723363376354,2.60318,2689.1,2688.7,0.1]
[1723363376690,0.01298359,2689.3,2688.7,0.1]
[1723363377355,2.60307,2689.2,2688.7,0.1]
[1723363377554,2.60311,2689.1,2688.7,0.1]
[1723363377759,2.60307,2689.2,2688.7,0.1]
[1723363378298,2.60321,2689.0,2688.7,0.1]
[1723363378590,0.01298359,2689.3,2688.7,0.1]
[1723363378591,2.61590359,2689.3,2688.7,0.1]
[1723363378791,0.01298359,2689.3,2688.7,0.1]
[1723363378954,2.60317,2689.1,2688.7,0.1]
[1723363379370,2.61595359,2689.3,2688.7,0.1]
[1723363379997,2.60322,2689.0,2688.7,0.1]
[1723363380202,2.6033,2688.9,2688.4,0.1]
[1723363380379,2.6033,2688.9,2688.5,0.1]
[1723363380704,2.7319708,2688.8,2688.3,0.1]
[1723363380999,0.1285708,2688.8,2688.6,0.1]
[1723363381498,0.1285708,2688.8,2688.6,0.27438203]
[1723363381686,0.1285708,2688.8,2688.7,5.06617291]
[1723363382006,0.1285708,2688.8,2688.7,25.08617291]
[1723363382173,0.1285708,2688.8,2688.7,7.76965291]
[1723363382373,0.1285708,2688.8,2688.7,7.66965291]
[1723363382600,0.1285708,2688.8,2688.7,7.76965291]
[1723363383303,0.1285708,2688.8,2688.7,13.31083291]
[1723363383523,0.1285708,2688.8,2688.7,14.3888364]
[1723363383720,0.1285708,2688.8,2688.7,8.6318764]
[1723363383871,0.1285708,2688.8,2688.7,8.0295]
[1723363384084,0.1285708,2688.8,2688.7,5.0295]
[1723363384267,0.1285708,2688.8,2688.7,5.1295]
[1723363384669,0.1285708,2688.8,2688.2,0.50828178]
[1723363384870,0.1285708,2688.8,2688.0,0.1]
[1723363384871,2.60405,2688.2,2688.0,0.1]
[1723363385086,0.51033708,2688.7,2688.1,0.1]
[1723363385311,2.60384,2688.4,2688.1,0.1]
[1723363385504,2.60433,2687.9,2687.7,0.1]
[1723363385803,4.9748,2688.7,2687.7,0.1]
[1723363385804,2.60416,2688.0,2687.7,0.1]
[1723363386500,2.60433,2687.9,2687.5,0.1]
[1723363386705,2.60417,2688.0,2687.6,0.1]
[1723363387105,2.60414,2688.1,2687.7,0.1]
[1723363387478,2.60426,2687.9,2687.7,0.1]
[1723363388107,2.60446,2687.7,2687.3,0.1]
[1723363388805,2.60429,2687.9,2687.5,0.1]
[1723363389311,2.60426,2687.9,2687.8,0.1]
[1723363389680,2.60426,2687.9,2687.5,0.1]
[1723363389681,2.60452,2687.7,2687.5,0.1]
[1723363389881,2.60465,2687.5,2687.2,0.1]
[1723363390276,2.60477,2687.4,2687.2,0.1]
[1723363390706,2.865267,2687.4,2687.0,0.1]
[1723363390980,1.018316,2687.9,2686.2,4.9295]
[1723363390981,2.60456,2687.6,2687.2,0.1]
[1723363391182,2.6044,2687.8,2687.4,0.1]
[1723363391694,1.018316,2687.9,2687.4,0.1]
[1723363391908,4.9748,2688.1,2687.7,0.1]
[1723363392106,0.75999907,2688.9,2687.7,0.1]
[1723363392107,2.60417,2688.0,2687.7,0.1]
[1723363392287,2.60442,2687.8,2687.5,0.1]
[1723363393082,5.20841,2688.0,2687.5,0.1]
[1723363393328,2.60427,2687.9,2687.5,0.1]
[1723363393539,2.60436,2687.8,2687.5,0.1]
[1723363393829,2.864609,2688.0,2687.5,0.1]
[1723363394009,2.60436,2687.8,2687.5,0.1]
[1723363394564,2.864609,2688.0,2687.5,0.1]
[1723363394765,2.864609,2688.0,2687.7,0.1]
[1723363395085,2.60436,2687.8,2687.4,0.1]
[1723363395276,2.60452,2687.7,2687.4,0.1]
[1723363395563,2.60457,2687.6,2687.4,0.1]
[1723363396731,3.125466,2687.6,2687.4,0.1]
[1723363397254,3.125466,2687.6,2686.3,2.6058]
[1723363397255,2.60491,2687.3,2687.1,0.1]
[1723363397430,2.60467,2687.5,2687.1,0.1]
[1723363397631,2.60467,2687.5,2686.9,0.1]
[1723363397911,2.605,2687.2,2686.9,0.1]
[1723363398423,2.60485,2687.3,2686.9,0.1]
[1723363398968,2.60505,2687.1,2686.9,0.1]
[1723363399477,2.60523,2686.9,2686.8,0.1]
[1723363399622,2.60523,2686.9,2686.7,19.92]
[1723363399976,2.60533,2686.8,2686.6,0.1]
[1723363400119,2.60523,2686.9,2686.6,0.1]
[1723363400322,2.60508,2687.1,2686.6,0.1]
[1723363400521,2.60519,2687.0,2686.6,0.1]
[1723363400967,3.371158,2687.1,2686.6,0.2]
[1723363401138,5.976278,2687.1,2686.6,0.2]
[1723363401335,2.60519,2687.0,2686.6,0.2]
[1723363401876,1.1032048,2687.0,2686.4,0.1]
[1723363402047,2.60577,2686.4,2686.2,0.1]
[1723363402441,5.21139,2686.5,2686.2,0.1]
[1723363402643,2.60575,2686.4,2686.2,0.1]
[1723363403038,2.60589,2686.3,2686.0,20.12]
[1723363403363,3.0,2687.1,2686.4,0.1]
[1723363403364,2.6054,2686.8,2686.4,0.1]
[1723363403525,2.60546,2686.7,2686.4,0.1]
[1723363403836,2.60553,2686.6,2686.2,0.1]
[1723363404025,2.60572,2686.4,2686.2,0.1]
[1723363404420,2.60572,2686.4,2686.0,20.12]
[1723363404628,2.60583,2686.3,2686.0,20.12]
[1723363405221,2.60598,2686.2,2686.0,0.1]
[1723363405658,10.573002,2686.4,2686.0,0.1]
[1723363405861,2.60555,2686.6,2686.0,0.1]
[1723363406062,2.60569,2686.5,2686.1,0.1]
[1723363406263,2.60582,2686.3,2686.0,0.1]
[1723363406458,2.60566,2686.5,2686.0,0.1]
[1723363406687,2.606,2686.1,2686.0,0.1]
[1723363406870,2.60588,2686.3,2686.0,0.1]
[1723363407388,2.60613,2686.0,2685.7,19.92]
[1723363407799,5.21231,2686.0,2685.7,19.92]
[1723363408314,2.60629,2685.8,2685.7,19.92]
[1723363408526,2.60629,2685.8,2685.6,19.92]
[1723363408877,7.70685,2686.2,2685.7,0.1]
[1723363409083,7.70685,2686.2,2685.6,20.02]
[1723363409084,5.1009,2686.5,2686.0,0.1]
[1723363409286,5.60561,2686.6,2686.3,0.1]
[1723363409287,3.0,2686.6,2686.3,0.1]
[1723363409486,2.60542,2686.7,2686.3,0.1]
[1723363409898,5.21056,2686.9,2686.4,0.1]
[1723363410128,3.0,2686.8,2686.4,0.1]
[1723363411024,5.60533,2686.8,2686.5,0.1]
[1723363411228,5.60533,2686.8,2686.4,0.1]
[1723363411527,5.60533,2686.8,2686.3,0.1]
[1723363411528,3.0,2686.8,2685.7,7.45]
[1723363411738,5.1009,2687.1,2686.0,0.1]
[1723363411739,2.60569,2686.5,2686.0,0.1]
[1723363411892,2.60554,2686.6,2686.2,0.1]
[1723363412434,2.6057,2686.5,2685.9,0.1]
[1723363412586,2.6057,2686.5,2686.2,0.1]
[1723363414206,2.6057,2686.5,2686.1,0.1]
[1723363414407,2.60582,2686.3,2686.0,0.1]
[1723363414909,2.60582,2686.3,2685.8,0.1]
[1723363415103,2.60591,2686.2,2685.8,0.1]
[1723363415557,2.60582,2686.3,2686.0,0.1]
[1723363415906,2.60594,2686.2,2685.8,0.1]
[1723363416107,2.60608,2686.1,2685.8,0.1]
[1723363416306,2.60594,2686.2,2685.8,0.1]
[1723363416560,2.60594,2686.2,2685.9,0.1]
[1723363417257,0.521147,2686.3,2685.9,0.1]
[1723363417457,2.60575,2686.4,2685.8,0.1]
[1723363417614,2.60575,2686.4,2686.0,0.1]
[1723363418065,2.60575,2686.4,2686.0,0.2]
[1723363418572,2.60575,2686.4,2686.0,0.1]
[1723363419022,2.60575,2686.4,2686.1,0.1]
[1723363419763,2.60575,2686.4,2686.0,0.1]
[1723363419764,3.636971,2686.4,2686.0,0.1]
[1723363420053,2.60597,2686.2,2686.0,0.1]
[1723363420220,2.60611,2686.0,2685.7,0.1]
[1723363420927,2.60597,2686.2,2685.8,19.92]
[1723363421131,3.636971,2686.4,2685.8,19.92]
[1723363421354,2.60582,2686.3,2685.9,0.1]
[1723363422024,1.031221,2686.4,2686.1,0.1]
[1723363422225,5.60573,2686.4,2686.1,0.1]
[1723363422747,3.0,2686.4,2686.1,0.1]
[1723363422926,2.60596,2686.2,2685.9,0.1]
[1723363423126,2.9059,2686.3,2686.0,0.1]
[1723363423535,2.9059,2686.3,2686.1,0.1]
[1723363423733,2.9059,2686.3,2685.9,0.1]
[1723363423734,2.90589,2686.3,2685.9,0.1]
[1723363423940,0.290589,2686.2,2685.8,20.02]
[1723363424138,2.60603,2686.1,2685.8,20.02]
[1723363424352,2.60614,2686.0,2685.8,19.92]
[1723363425529,2.6062,2685.9,2685.8,19.92]
[1723363426247,3.643614,2685.9,2685.8,19.92]
[1723363426568,6.249814,2685.9,2685.8,19.92]
[1723363427272,7.53865638,2685.9,2685.8,19.92]
[1723363428941,3.89504238,2685.9,2685.8,19.92]
[1723363429500,3.89502555,2685.9,2685.8,19.92]
[1723363429782,2.60602,2686.1,2685.8,19.92]
[1723363429993,1.28881539,2686.0,2685.8,19.92]
[1723363430190,3.0,2686.2,2685.9,0.1]
[1723363430340,3.0,2686.2,2685.8,19.92]
[1723363430341,1.28874888,2686.1,2685.8,19.92]
[1723363430739,1.28874888,2686.1,2686.0,0.1]
[1723363431140,1.28874888,2686.1,2685.8,19.92]
[1723363431335,3.89483888,2686.1,2685.8,19.92]
[1723363431548,1.28874888,2686.0,2685.8,20.02]
[1723363435578,1.28874888,2686.1,2685.8,20.02]
[1723363435781,1.28874888,2686.1,2685.8,0.1]
[1723363436412,2.8342356,2686.1,2685.8,0.1]
[1723363436614,1.28874791,2686.0,2685.8,0.1]
[1723363436823,1.28874791,2685.9,2685.8,0.1]
[1723363437002,1.28874791,2685.9,2685.7,0.1]
[1723363437184,1.54548672,2686.1,2685.8,0.1]
[1723363437507,1.288705,2686.0,2685.8,0.1]
[1723363437706,1.288705,2685.9,2685.8,0.1]
[1723363438438,1.288705,2686.0,2685.8,0.1]
[1723363438595,1.288705,2685.9,2685.8,0.1]
[1723363438935,5.60596,2686.2,2686.0,0.1]
[1723363439095,1.28873108,2686.1,2686.0,0.1]
[1723363439300,2.36550708,2686.1,2686.0,0.1]
[1723363439610,1.28873108,2686.1,2686.0,0.1]
[1723363440198,1.28868271,2686.1,2686.0,0.1]
[1723363440819,2.60572,2686.4,2686.2,0.1]
[1723363441022,1.28859426,2686.3,2686.2,0.1]
[1723363441609,1.28859426,2686.3,2686.2,0.2]
[1723363441923,2.60551,2686.7,2686.4,0.1]
[1723363442119,1.28844092,2686.6,2686.4,0.2]
[1723363442320,1.28844092,2686.5,2686.4,0.1]
[1723363442522,1.28844092,2686.6,2686.4,0.1]
[1723363442684,7.71367,2687.1,2685.9,19.92]
[1723363442685,2.60578,2686.4,2686.0,0.2]
[1723363443047,1.28863309,2686.3,2686.2,5.5006]
[1723363443320,2.60534,2686.8,2686.6,0.1]
[1723363443496,1.28845571,2686.7,2686.6,0.1]
[1723363444291,1.28845571,2686.7,2686.5,0.1]
[1723363444491,5.1086,2687.1,2686.2,5.3006]
[1723363444492,3.89401571,2686.6,2686.3,0.1]
[1723363444693,2.60578,2686.4,2686.1,0.1]
[1723363445012,1.28845571,2686.3,2686.1,0.1]
[1723363445208,2.60578,2686.4,2686.2,0.1]
[1723363445727,2.60578,2686.4,2686.0,20.02]
[1723363445904,1.28858922,2686.3,2686.1,0.1]
[1723363446103,1.28858922,2686.2,2686.1,0.1]
[1723363446328,1.28861264,2686.2,2686.1,0.1]
[1723363447026,1.6780519,2686.2,2685.9,0.1]
[1723363447228,2.60588,2686.3,2686.1,0.1]
[1723363447430,1.28865811,2686.2,2685.9,0.1]
[1723363447599,1.28865811,2686.1,2685.9,0.1]
[1723363448209,1.28865811,2686.1,2686.0,0.1]
[1723363449129,0.260588,2686.3,2686.0,0.1]
[1723363449328,1.28863151,2686.2,2686.1,0.1]
[1723363449741,0.260588,2686.3,2686.1,0.1]
[1723363449957,4.18127406,2686.2,2685.9,0.1]
[1723363450246,3.89474026,2686.1,2685.9,0.1]
[1723363450398,3.89483026,2686.0,2685.8,19.92]
[1723363450595,2.60616,2686.0,2685.9,0.1]
[1723363450805,3.89486073,2686.0,2685.9,0.1]
[1723363451536,2.8926038,2686.2,2685.9,0.1]
[1723363451829,1.28868579,2686.1,2685.9,0.1]
[1723363452036,1.28868579,2686.0,2685.9,0.1]
[1723363452414,2.60597,2686.2,2685.9,0.1]
[1723363452735,1.28868887,2686.1,2685.9,0.1]
[1723363452921,2.60597,2686.2,2685.9,0.1]
[1723363453127,1.28868392,2686.1,2685.9,0.1]
[1723363453298,10.57565,2686.6,2686.2,0.1]
[1723363453502,1.28861551,2686.5,2686.0,0.1]
[1723363453730,2.21448406,2686.4,2686.0,0.1]
[1723363454037,1.28861551,2686.3,2686.0,0.1]
[1723363454208,1.28861551,2686.2,2686.0,0.1]
[1723363454411,1.5,2688.6,2686.1,0.1]
[1723363454641,2.60539,2686.8,2686.6,0.1]
[1723363454811,1.28860616,2686.7,2686.6,0.1]
[1723363455246,1.28860616,2686.7,2686.5,0.1]
[1723363455418,1.28860616,2686.6,2686.5,0.2]
[1723363455613,1.28860616,2686.6,2686.5,0.1]
[1723363456533,1.28860616,2686.6,2686.5,0.2]
[1723363456747,1.28860616,2686.6,2686.5,0.1]
[1723363456928,1.28846616,2686.6,2686.5,0.1]
[1723363458149,1.28846616,2686.6,2686.2,0.1]
[1723363458150,1.93838478,2686.6,2686.1,0.1]
[1723363458337,3.89414616,2686.5,2686.1,0.1]
[1723363458539,1.28846616,2686.4,2686.1,0.1]
[1723363458848,3.89418616,2686.4,2686.1,20.02]
[1723363459055,1.28846616,2686.3,2686.1,20.02]
[1723363459420,3.89434616,2686.3,2686.1,20.02]
[1723363459620,3.89457316,2686.2,2686.1,19.92]
[1723363459849,3.89461576,2686.2,2686.1,19.92]
[1723363460428,3.89461014,2686.2,2686.1,19.92]
[1723363460818,2.60591,2686.2,2686.1,19.92]
[1723363461024,3.89460992,2686.2,2686.1,19.92]
[1723363462053,2.60591,2686.2,2686.1,19.92]
[1723363462224,3.89457025,2686.2,2686.1,19.92]
[1723363462626,4.60959994,2686.2,2685.9,0.1]
[1723363462826,1.28866025,2686.1,2685.9,0.1]
[1723363463525,2.6061,2686.0,2685.7,20.12]
[1723363463756,1.28878498,2685.9,2685.7,20.12]
[1723363463957,2.6061,2686.0,2685.7,20.12]
[1723363464523,3.32093969,2686.2,2685.9,0.1]
[1723363464830,1.28874957,2686.1,2685.7,20.12]
[1723363465030,1.28874957,2686.0,2685.7,20.12]
[1723363465329,1.28874957,2685.9,2685.7,20.12]
[1723363465529,5.21191,2686.2,2685.7,20.12]
[1723363465729,1.80993683,2686.1,2685.7,20.12]
[1723363465930,1.28874583,2686.0,2685.7,20.12]
[1723363467035,3.89492583,2686.0,2685.7,0.2]
[1723363467357,1.28874583,2685.9,2685.7,0.2]
[1723363467866,3.127201,2686.1,2685.7,0.2]
[1723363468160,1.2887807,2686.0,2685.7,0.2]
[1723363468363,1.2887807,2685.9,2685.7,0.2]
[1723363468659,0.93402817,2686.0,2685.7,0.2]
[1723363468859,1.28878002,2685.9,2685.7,0.2]
[1723363469061,0.93402817,2686.0,2685.7,0.2]
[1723363469258,1.28877469,2685.9,2685.7,0.2]
[1723363469560,0.93402817,2686.0,2685.7,0.1]
[1723363469731,2.60586,2686.3,2685.8,0.1]
[1723363469934,2.60586,2686.3,2686.0,0.1]
[1723363469935,1.28869999,2686.2,2686.0,0.1]
[1723363470162,1.28869999,2686.1,2686.0,0.1]
[1723363470368,1.54928599,2686.2,2686.0,0.1]
[1723363470585,1.28869999,2686.1,2686.0,0.1]
[1723363471097,0.260586,2686.2,2686.0,0.1]
[1723363471239,1.28869357,2686.1,2686.0,0.1]
[1723363471578,0.260586,2686.2,2686.0,0.1]
[1723363471773,1.28868192,2686.1,2686.0,0.1]
[1723363472076,1.28868192,2686.1,2685.9,0.1]
[1723363472234,1.28868192,2686.0,2685.7,0.1]
[1723363472872,3.02155279,2686.1,2685.7,0.1]
[1723363473106,1.28874975,2686.0,2685.7,0.1]
[1723363473581,1.28874975,2685.9,2685.7,0.1]
[1723363473735,0.41551279,2686.1,2685.7,0.1]
[1723363474043,1.28872501,2686.0,2685.7,0.1]
[1723363474247,1.28872501,2685.9,2685.7,0.1]
[1723363474460,1.28872501,2686.1,2685.7,0.1]
[1723363474866,2.60592,2686.2,2685.7,0.1]
[1723363474867,1.28874628,2686.0,2685.7,0.1]
[1723363475033,1.28874628,2685.9,2685.7,0.1]
[1723363475380,2.60575,2686.4,2686.1,0.1]
[1723363475550,2.30226811,2686.3,2686.1,0.1]
[1723363475749,1.28868411,2686.2,2686.1,0.1]
[1723363477258,1.28868411,2686.2,2685.7,5.0986]
[1723363477462,1.28868411,2686.1,2686.0,0.1]
[1723363478246,0.3619334,2686.2,2686.0,0.1]
[1723363478481,1.28868267,2686.1,2686.0,0.1]
[1723363479762,0.3619334,2686.2,2686.0,0.1]
[1723363482387,1.28867224,2686.1,2686.0,0.1]
[1723363483486,1.013584,2686.3,2686.0,0.1]
[1723363483812,1.28856027,2686.2,2686.0,0.1]
[1723363483946,3.0,2686.4,2686.0,0.1]
[1723363484284,3.0,2686.4,2686.2,0.1]
[1723363484285,1.28854789,2686.3,2686.2,0.1]
[1723363484851,1.28854789,2686.3,2685.9,0.1]
[1723363484852,1.28854789,2686.3,2686.0,0.1]
[1723363485203,3.0,2686.4,2686.0,0.1]
[1723363485204,1.28854789,2686.2,2686.0,0.1]
[1723363485553,1.28863114,2686.1,2686.0,0.1]
[1723363486071,1.28868002,2686.1,2686.0,0.1]
[1723363487695,1.28868002,2686.1,2685.9,0.1]
[1723363487981,1.28868002,2686.0,2685.9,0.1]
[1723363488388,1.28868002,2686.0,2685.8,19.92]
[1723363488560,1.28868002,2685.9,2685.8,19.92]
[1723363489193,3.89488002,2685.9,2685.8,19.92]
[1723363489485,1.28868002,2685.9,2685.5,0.1]
[1723363489665,0.901638,2685.8,2685.5,0.1]
[1723363489864,1.28868002,2685.7,2685.5,0.1]
[1723363492582,1.28887794,2685.6,2685.5,0.1]
[1723363492786,0.901638,2685.8,2685.5,0.1]
[1723363492992,1.28888917,2685.6,2685.5,0.1]
[1723363495617,0.901638,2685.8,2685.5,0.1]
[1723363495760,1.6396681,2685.7,2685.5,0.1]
[1723363495959,0.3507888,2685.7,2685.5,0.1]
[1723363496471,2.57777073,2685.6,2685.5,0.1]
[1723363496672,1.28887898,2685.6,2685.5,0.1]
[1723363501194,1.28887898,2685.6,2685.5,5.3596]
[1723363502108,1.28887898,2685.6,2685.5,10.57278]
[1723363503290,1.28887898,2685.6,2685.5,10.47278]
[1723363503594,3.0,2686.5,2686.2,0.1]
[1723363503757,1.2885934,2686.4,2686.2,0.1]
[1723363503964,1.71745274,2686.3,2686.2,0.1]
[1723363504900,1.71745274,2686.3,2686.1,0.1]
[1723363505082,1.2885934,2686.2,2686.1,0.1]
[1723363506366,1.28863947,2686.2,2686.1,0.1]
[1723363506897,0.42885934,2686.3,2686.2,0.1]
[1723363507101,1.71745328,2686.3,2686.2,0.1]
[1723363507502,1.71745328,2686.3,2685.9,0.1]
[1723363507675,1.28859394,2686.2,2685.9,0.1]
[1723363507875,1.28859394,2686.2,2685.8,0.1]
[1723363508307,1.72091627,2686.2,2685.9,0.1]
[1723363508483,1.28859394,2686.1,2685.9,0.1]
[1723363508894,1.28859394,2686.2,2685.9,0.1]
[1723363509214,0.42885934,2686.3,2685.9,0.1]
[1723363509506,1.28863615,2686.2,2685.9,0.1]
[1723363509817,1.28863615,2686.1,2685.9,0.1]
[1723363510017,1.28863615,2686.2,2685.9,0.1]
[1723363510879,1.28863615,2686.2,2686.1,0.1]
[1723363512412,1.28863615,2686.2,2686.0,5.0976]
[1723363512600,1.28863615,2686.2,2685.9,0.1]
[1723363513515,0.42885934,2686.3,2685.9,0.1]
[1723363513812,1.28861996,2686.2,2685.9,0.1]
[1723363514016,0.42885934,2686.3,2685.9,0.1]
[1723363514199,1.28861995,2686.2,2685.9,0.1]
[1723363514717,0.42885934,2686.3,2685.9,0.1]
[1723363514915,1.28861997,2686.2,2685.9,0.1]
[1723363515114,0.42885934,2686.3,2685.9,0.1]
[1723363515413,0.42885934,2686.3,2685.4,2.60667]
[1723363515414,5.1696,2685.8,2685.4,0.1]